fUSD/lending_fUSD_20250107
["ID","MTS","AMOUNT","RATE_DAILY","PERIOD"]
[348029509,1736269871980,-500.0,0.00011785,2]
[348029510,1736269871990,-351.01852244,0.00011785,2]
[348029511,1736269872000,-500.0,0.00011785,2]
[348029512,1736269872009,-539.57,0.00011785,2]
[348029513,1736269872019,-1253.8,0.00011785,2]
[348029514,1736269872028,-500.0,0.00011785,2]
[348029515,1736269872037,-500.0,0.00011785,2]
[348029516,1736269872046,-500.0,0.00011785,2]
[348029517,1736269872055,-500.0,0.00011785,2]
[348029518,1736269872064,-627.9,0.00011785,2]
[348029519,1736269872074,-500.0,0.00011785,2]
[348029520,1736269872083,-500.0,0.00011785,2]
[348029521,1736269872092,-500.0,0.00011785,2]
[348029522,1736269872101,-500.0,0.00011785,2]
[348029523,1736269872110,-500.0,0.00011785,2]
[348029524,1736269872119,-500.0,0.00011785,2]
[348029525,1736269872129,-500.0,0.00011785,2]
[348029526,1736269872138,-777.41,0.00011785,2]
[348029527,1736269872147,-500.0,0.00011785,2]
[348029528,1736269872156,-500.0,0.00011785,2]
[348029529,1736269872169,-154.745445,0.00011785,2]
[348029530,1736269872178,-514.63,0.00011785,2]
[348029531,1736269872187,-2341.36,0.00011785,2]
[348029532,1736269872197,-500.0,0.00011785,2]
[348029533,1736269872209,-500.0,0.00011785,2]
[348029534,1736269872219,-1033.9,0.00011785,2]
[348029535,1736269872228,-500.0,0.00011785,2]
[348029536,1736269872240,-153.380151,0.00011785,2]
[348029537,1736269872252,-500.0,0.00011785,2]
[348029538,1736269872262,-515.4,0.00011785,2]
[348029539,1736269872270,-1531.0,0.00011785,2]
[348029540,1736269872279,-500.0,0.00011785,2]
[348029541,1736269872289,-539.95,0.00011785,2]
[348029542,1736269872298,-422.79987175,0.00011785,2]
[348029543,1736269872308,-503.94,0.00011785,2]
[348029544,1736269872317,-500.0,0.00011785,2]
[348029545,1736269872328,-581.8,0.00011785,2]
[348029546,1736269872337,-1283.23,0.00011785,2]
[348029547,1736269872347,-4687.05,0.00011785,2]
[348029548,1736269872357,-500.56,0.00011785,2]
[348029549,1736269872367,-500.0,0.00011785,2]
[348029550,1736269872376,-737.07,0.00011785,2]
[348029551,1736269872386,-633.14,0.00011785,2]
[348029552,1736269872396,-500.0,0.00011785,2]
[348029553,1736269872408,-929.78,0.00011785,2]
[348029554,1736269872418,-2613.22,0.00011785,2]
[348029555,1736269872427,-856.34,0.00011785,2]
[348029556,1736269872436,-551.19,0.00011785,2]
[348029557,1736269872446,-500.0,0.00011785,2]
[348029558,1736269872455,-500.0,0.00011785,2]
[348029559,1736269872464,-604.02,0.00011785,2]
[348029560,1736269872473,-500.0,0.00011785,2]
[348029561,1736269872483,-500.0,0.00011785,2]
[348029562,1736269872492,-500.0,0.00011785,2]
[348029563,1736269872501,-500.0,0.00011785,2]
[348029564,1736269872510,-500.0,0.00011785,2]
[348029565,1736269872519,-500.0,0.00011785,2]
[348029566,1736269872528,-3266.89,0.00011785,2]
[348029567,1736269872538,-500.0,0.00011785,2]
[348029568,1736269872547,-500.0,0.00011785,2]
[348029569,1736269872556,-500.0,0.00011785,2]
[348029570,1736269872566,-500.0,0.00011785,2]
[348029571,1736269872575,-2124.35,0.00011785,2]
[348029572,1736269872585,-500.0,0.00011785,2]
[348029573,1736269872594,-439.37686276,0.00011785,2]
[348029574,1736269872603,-2232.77,0.00011785,2]
[348029575,1736269872613,-500.0,0.00011785,2]
[348029576,1736269872622,-500.0,0.00011785,2]
[348029577,1736269872631,-3454.34,0.00011785,2]
[348029578,1736269872641,-557.96,0.00011785,2]
[348029579,1736269872651,-2560.79,0.00011785,2]
[348029580,1736269872662,-576.67,0.00011785,2]
[348029581,1736269872671,-500.0,0.00011785,2]
[348029582,1736269872681,-1451.23,0.00011785,2]
[348029583,1736269872691,-1488.01,0.00011785,2]
[348029584,1736269872700,-500.0,0.00011785,2]
[348029585,1736269872709,-500.0,0.00011785,2]
[348029586,1736269872718,-699.38,0.00011785,2]
[348029587,1736269872728,-500.0,0.00011785,2]
[348029588,1736269872737,-568.01,0.00011785,2]
[348029589,1736269872747,-675.82,0.00011785,2]
[348029590,1736269872756,-500.0,0.00011785,2]
[348029591,1736269872766,-500.0,0.00011785,2]
[348029592,1736269872776,-500.0,0.00011785,2]
[348029593,1736269872785,-500.0,0.00011785,2]
[348029594,1736269872794,-500.0,0.00011785,2]
[348029595,1736269872804,-908.6,0.00011785,2]
[348029596,1736269872813,-500.0,0.00011785,2]
[348029597,1736269872822,-500.0,0.00011785,2]
[348029598,1736269872831,-509.15,0.00011785,2]
[348029599,1736269872841,-569.58,0.00011785,2]
[348029600,1736269872850,-500.0,0.00011785,2]
[348029601,1736269872860,-601.29,0.00011785,2]
[348029602,1736269872869,-398.64,0.00011786,2]
[348029603,1736269872879,-295.9013636,0.00011786,2]
[348029604,1736269872888,-500.0,0.00011786,2]
[348029605,1736269872898,-500.0,0.00011786,2]
[348029606,1736269872907,-1093.7,0.00011786,2]
[348029607,1736269872917,-500.0,0.00011786,2]
[348029608,1736269872927,-500.0,0.00011786,2]
[348029609,1736269872936,-1413.47,0.00011786,2]
[348029610,1736269872945,-1288.12,0.00011786,2]
[348029611,1736269872954,-1185.98,0.00011786,2]
[348029612,1736269872964,-2119.32,0.00011786,2]
[348029613,1736269872974,-1302.0,0.00011786,2]
[348029614,1736269872984,-1535.33,0.00011786,2]
[348029615,1736269872993,-687.94,0.00011786,2]
[348029616,1736269873002,-3857.08,0.00011786,2]
[348029617,1736269873011,-868.61,0.00011786,2]
[348029618,1736269873020,-1125.63,0.00011786,2]
[348029619,1736269873029,-2371.71,0.00011786,2]
[348029620,1736269873038,-1450.55,0.00011786,2]
[348029621,1736269873047,-915.4,0.00011786,2]
[348029622,1736269873056,-575.38,0.00011786,2]
[348029623,1736269873066,-728.18,0.00011786,2]
[348029624,1736269873075,-1000.0,0.00011799,2]
[348029625,1736269873084,-200.0,0.000118,2]
[348029626,1736269873094,-429.6623773,0.0001184,2]
[348029627,1736269873103,-152.74,0.00012,5]
[348029628,1736269873112,-11247.36935842,0.00012,2]
[348029629,1736269873121,-984.18,0.00012007,5]
[348029630,1736269873131,-1005.1,0.00012009,5]
[348029631,1736269873139,-998.52,0.0001201,5]
[348029632,1736269873149,-986.27,0.00012011,5]
[348029633,1736269873159,-1005.96,0.00012013,5]
[348029634,1736269873168,-982.56,0.00012015,5]
[348029635,1736269873181,-1007.46,0.00012017,5]
[348029636,1736269873190,-993.39,0.0001202,5]
[348029637,1736269873201,-987.26,0.00012023,5]
[348029638,1736269873210,-1011.25,0.00012026,5]
[348029639,1736269873222,-989.73,0.0001203,5]
[348029640,1736269873231,-1005.81,0.00012035,5]
[348029641,1736269873240,-1013.55,0.0001204,5]
[348029642,1736269873252,-1011.48,0.00012046,5]
[348029643,1736269873262,-1589.61,0.00012052,2]
[348029644,1736269873272,-3923.32,0.00012052,2]
[348029645,1736269873282,-977.41,0.00012052,2]
[348029646,1736269873291,-807.65,0.00012052,2]
[348029647,1736269873301,-1479.34,0.00012052,2]
[348029648,1736269873311,-467.87,0.00012052,2]
[348029649,1736269873321,-841.01,0.00012052,2]
[348029650,1736269873330,-792.75,0.00012052,2]
[348029651,1736269873340,-500.0,0.00012052,2]
[348029652,1736269873350,-1000.0,0.00012052,2]
[348029653,1736269873360,-1022.36,0.00012052,2]
[348029654,1736269873370,-644.04,0.00012052,2]
[348029655,1736269873380,-1768.42,0.00012052,2]
[348029656,1736269873389,-1232.84,0.00012052,2]
[348029657,1736269873399,-270.4581672,0.00012053,2]
[348029658,1736269873409,-994.15,0.00012054,5]
[348029659,1736269873419,-200.0,0.00012055,2]
[348029660,1736269873431,-1594.15,0.00012058,2]
[348029661,1736269873441,-500.0,0.00012058,2]
[348029662,1736269873451,-1240.47,0.00012058,2]
[348029663,1736269873461,-741.54,0.00012058,2]
[348029664,1736269873470,-1269.06,0.00012058,2]
[348029665,1736269873480,-3340.23,0.00012058,2]
[348029666,1736269873490,-522.9,0.00012058,2]
[348029667,1736269873500,-572.51,0.00012058,2]
[348029668,1736269873509,-500.0,0.00012058,2]
[348029669,1736269873519,-2078.06,0.00012058,2]
[348029670,1736269873528,-2143.6,0.00012058,2]
[348029671,1736269873538,-1309.19,0.00012058,2]
[348029672,1736269873548,-580.33,0.00012058,2]
[348029673,1736269873558,-1631.23,0.00012058,2]
[348029674,1736269873568,-1380.0,0.00012058,2]
[348029675,1736269873578,-1027.85,0.00012058,2]
[348029676,1736269873588,-532.32,0.00012058,2]
[348029677,1736269873598,-1096.67,0.00012058,2]
[348029678,1736269873608,-1137.79,0.00012058,2]
[348029679,1736269873617,-875.8,0.00012058,2]
[348029680,1736269873627,-500.0,0.00012058,2]
[348029681,1736269873637,-502.1,0.00012058,2]
[348029682,1736269873646,-500.0,0.00012058,2]
[348029683,1736269873657,-500.0,0.00012059,2]
[348029684,1736269873667,-500.0,0.00012059,2]
[348029685,1736269873677,-500.0,0.00012059,2]
[348029686,1736269873686,-500.0,0.00012059,2]
[348029687,1736269873696,-500.0,0.00012059,2]
[348029688,1736269873706,-591.62,0.00012059,2]
[348029689,1736269873716,-500.0,0.00012059,2]
[348029690,1736269873726,-500.0,0.00012059,2]
[348029691,1736269873736,-500.0,0.00012059,2]
[348029692,1736269873746,-178.38946393,0.00012059,2]
[348029693,1736269873756,-360.09,0.00012059,2]
[348029694,1736269873766,-500.0,0.00012059,2]
[348029695,1736269873776,-500.0,0.00012059,2]
[348029696,1736269873785,-500.0,0.00012059,2]
[348029697,1736269873795,-500.0,0.00012059,2]
[348029698,1736269873805,-500.0,0.00012059,2]
[348029699,1736269873815,-317.64,0.00012059,2]
[348029700,1736269873826,-500.0,0.00012059,2]
[348029701,1736269873836,-500.0,0.00012059,2]
[348029702,1736269873846,-214.73851296,0.00012059,2]
[348029703,1736269873856,-500.0,0.00012059,2]
[348029704,1736269873866,-500.0,0.00012059,2]
[348029705,1736269873876,-500.0,0.00012059,2]
[348029706,1736269873886,-580.43,0.00012059,2]
[348029707,1736269873895,-525.51,0.00012059,2]
[348029708,1736269873905,-500.0,0.00012059,2]
[348029709,1736269873916,-500.0,0.00012059,2]
[348029710,1736269873926,-500.0,0.00012059,2]
[348029711,1736269873936,-500.0,0.00012059,2]
[348029712,1736269873947,-568.34,0.00012059,2]
[348029713,1736269873956,-500.0,0.00012059,2]
[348029714,1736269873966,-607.74,0.00012059,2]
[348029715,1736269873976,-500.0,0.00012059,2]
[348029716,1736269873986,-500.0,0.00012059,2]
[348029717,1736269873996,-412.34714898,0.00012059,2]
[348029718,1736269874006,-1144.98,0.00012059,2]
[348029719,1736269874016,-546.89,0.00012059,2]
[348029720,1736269874026,-590.87,0.00012059,2]
[348029721,1736269874035,-500.0,0.00012059,2]
[348029722,1736269874045,-500.0,0.00012059,2]
[348029723,1736269874055,-543.71983397,0.00012059,2]
[348029724,1736269874066,-500.0,0.00012059,2]
[348029725,1736269874076,-802.76,0.00012059,2]
[348029726,1736269874086,-500.0,0.00012059,2]
[348029727,1736269874097,-2051.12,0.00012059,2]
[348029728,1736269874106,-565.88,0.00012059,2]
[348029729,1736269874116,-500.0,0.00012059,2]
[348029730,1736269874126,-500.0,0.00012059,2]
[348029731,1736269874137,-500.0,0.00012059,2]
[348029732,1736269874147,-500.0,0.00012059,2]
[348029733,1736269874157,-539.57,0.00012059,2]
[348029734,1736269874171,-1253.8,0.00012059,2]
[348029735,1736269874181,-537.84,0.00012059,2]
[348029736,1736269874191,-500.0,0.00012059,2]
[348029737,1736269874203,-500.0,0.00012059,2]
[348029738,1736269874214,-500.0,0.00012059,2]
[348029739,1736269874224,-627.9,0.00012059,2]
[348029740,1736269874235,-441.7,0.00012059,2]
[348029741,1736269874245,-500.0,0.00012059,2]
[348029742,1736269874258,-500.0,0.00012059,2]
[348029743,1736269874268,-500.0,0.00012059,2]
[348029744,1736269874278,-500.0,0.00012059,2]
[348029745,1736269874288,-500.0,0.00012059,2]
[348029746,1736269874298,-500.0,0.00012059,2]
[348029747,1736269874308,-777.41,0.00012059,2]
[348029748,1736269874318,-500.0,0.00012059,2]
[348029749,1736269874328,-563.69458442,0.00012059,2]
[348029750,1736269874338,-514.63,0.00012059,2]
[348029751,1736269874349,-2341.36,0.00012059,2]
[348029752,1736269874359,-500.0,0.00012059,2]
[348029753,1736269874370,-500.0,0.00012059,2]
[348029754,1736269874380,-500.0,0.00012059,2]
[348029755,1736269874390,-1033.9,0.00012059,2]
[348029756,1736269874400,-500.0,0.00012059,2]
[348029757,1736269874411,-515.4,0.00012059,2]
[348029758,1736269874421,-1531.0,0.00012059,2]
[348029759,1736269874431,-500.0,0.00012059,2]
[348029760,1736269874441,-539.95,0.00012059,2]
[348029761,1736269874451,-503.94,0.00012059,2]
[348029762,1736269874461,-500.0,0.00012059,2]
[348029763,1736269874471,-581.8,0.00012059,2]
[348029764,1736269874481,-1283.23,0.00012059,2]
[348029765,1736269874491,-4687.05,0.00012059,2]
[348029766,1736269874500,-500.56,0.00012059,2]
[348029767,1736269874510,-500.0,0.00012059,2]
[348029768,1736269874520,-737.07,0.00012059,2]
[348029769,1736269874530,-633.14,0.00012059,2]
[348029770,1736269874540,-500.0,0.00012059,2]
[348029771,1736269874550,-929.78,0.00012059,2]
[348029772,1736269874560,-856.34,0.00012059,2]
[348029773,1736269874571,-2613.22,0.00012059,2]
[348029774,1736269874581,-551.19,0.00012059,2]
[348029775,1736269874591,-500.0,0.00012059,2]
[348029776,1736269874601,-500.0,0.00012059,2]
[348029777,1736269874611,-500.0,0.00012059,2]
[348029778,1736269874622,-500.0,0.00012059,2]
[348029779,1736269874633,-500.0,0.00012059,2]
[348029780,1736269874642,-500.0,0.00012059,2]
[348029781,1736269874652,-500.0,0.00012059,2]
[348029782,1736269874663,-500.0,0.00012059,2]
[348029783,1736269874673,-3266.89,0.00012059,2]
[348029784,1736269874684,-500.0,0.00012059,2]
[348029785,1736269874694,-500.0,0.00012059,2]
[348029786,1736269874705,-500.0,0.00012059,2]
[348029787,1736269874714,-500.0,0.00012059,2]
[348029788,1736269874724,-2124.35,0.00012059,2]
[348029789,1736269874734,-500.0,0.00012059,2]
[348029790,1736269874744,-2232.77,0.00012059,2]
[348029791,1736269874754,-154.40679895,0.00012059,2]
[348029792,1736269874764,-500.0,0.00012059,2]
[348029793,1736269874774,-3454.34,0.00012059,2]
[348029794,1736269874785,-557.96,0.00012059,2]
[348029795,1736269874795,-2560.79,0.00012059,2]
[348029796,1736269874805,-576.67,0.00012059,2]
[348029797,1736269874815,-500.0,0.00012059,2]
[348029798,1736269874825,-1451.23,0.00012059,2]
[348029799,1736269874835,-1488.01,0.00012059,2]
[348029800,1736269874845,-500.0,0.00012059,2]
[348029801,1736269874855,-500.0,0.00012059,2]
[348029802,1736269874865,-699.38,0.00012059,2]
[348029803,1736269874875,-500.0,0.00012059,2]
[348029804,1736269874885,-568.01,0.00012059,2]
[348029805,1736269874895,-675.82,0.00012059,2]
[348029806,1736269874905,-500.0,0.00012059,2]
[348029807,1736269874917,-500.0,0.00012059,2]
[348029808,1736269874927,-500.0,0.00012059,2]
[348029809,1736269874936,-500.0,0.00012059,2]
[348029810,1736269874946,-500.0,0.00012059,2]
[348029811,1736269874956,-908.6,0.00012059,2]
[348029812,1736269874966,-500.0,0.00012059,2]
[348029813,1736269874977,-500.0,0.00012059,2]
[348029814,1736269874987,-509.15,0.00012059,2]
[348029815,1736269874996,-569.58,0.00012059,2]
[348029816,1736269875007,-500.0,0.00012059,2]
[348029817,1736269875017,-601.29,0.00012059,2]
[348029818,1736269875027,-500.0,0.0001206,2]
[348029819,1736269875038,-500.0,0.0001206,2]
[348029820,1736269875049,-1093.7,0.0001206,2]
[348029821,1736269875059,-500.0,0.0001206,2]
[348029822,1736269875069,-500.0,0.0001206,2]
[348029823,1736269875080,-1413.47,0.0001206,2]
[348029824,1736269875090,-1288.12,0.0001206,2]
[348029825,1736269875100,-1185.98,0.0001206,2]
[348029826,1736269875110,-2119.32,0.0001206,2]
[348029827,1736269875120,-1535.33,0.0001206,2]
[348029828,1736269875130,-687.94,0.0001206,2]
[348029829,1736269875140,-3857.08,0.0001206,2]
[348029830,1736269875150,-868.61,0.0001206,2]
[348029831,1736269875162,-1125.63,0.0001206,2]
[348029832,1736269875174,-2371.71,0.0001206,2]
[348029833,1736269875184,-1450.55,0.0001206,2]
[348029834,1736269875194,-915.4,0.0001206,2]
[348029835,1736269875205,-575.38,0.0001206,2]
[348029836,1736269875217,-1004.53,0.00012062,5]
[348029837,1736269875227,-1006.86,0.00012071,5]
[348029838,1736269875239,-1007.37,0.00012082,5]
[348029839,1736269875252,-50948.55999344,0.00012087,2]
[348029840,1736269875262,-1004.04,0.00012094,5]
[348029841,1736269875272,-1597.45,0.000121,2]
[348029842,1736269875281,-133308.47961722,0.000121,2]
[348029843,1736269875291,-202.8,0.000121,2]
[348029844,1736269875303,-227.34072829,0.000121,2]
[348029845,1736269875314,-182.17861886,0.000121,2]
[348029846,1736269875323,-4694.15146299,0.000121,2]
[348029847,1736269875333,-999.09,0.00012109,5]
[348029848,1736269875343,-1014.9,0.00012125,5]
[348029849,1736269875353,-993.14,0.00012144,5]
[348029850,1736269875362,-330.67,0.00012163,2]
[348029851,1736269875372,-991.27,0.00012166,5]
[348029852,1736269875382,-1010.62,0.00012192,5]
[348029853,1736269875392,-150.0,0.00012192,2]
[348029854,1736269875402,-10111.271171,0.000122,2]
[348029855,1736269875414,-920401.59632342,0.000122,2]
[348029856,1736269875627,-2272.70076181,0.000122,2]
[348029857,1736269875637,-500.0,0.00012202,2]
[348029858,1736269875647,-200.0,0.00012202,2]
[348029859,1736269875657,-990.39,0.00012221,5]
[348029860,1736269875667,-2272.70076178,0.00012222,2]
[348029861,1736269875676,-150.0,0.0001223,2]
[348029862,1736269875686,-200.0,0.00012239,2]
[348029863,1736269875696,-2272.70076178,0.00012244,2]
[348029864,1736269875705,-4694.15146297,0.0001225,2]
[348029865,1736269875714,-1012.72,0.00012254,5]
[348029866,1736269875724,-39500.24635776,0.00012263,2]
[348029867,1736269875734,-2272.70076178,0.00012267,2]
[348029868,1736269875744,-2272.70076178,0.00012289,2]
[348029869,1736269875754,-2772.78654,0.0001229,2]
[348029870,1736269875763,-500.0,0.00012292,2]
[348029871,1736269875773,-500.0,0.00012292,2]
[348029872,1736269875783,-150.0,0.00012292,2]
[348029873,1736269875793,-3345.0,0.00012292,2]
[348029874,1736269875803,-150.0,0.00012292,2]
[348029875,1736269875812,-500.0,0.00012292,2]
[348029876,1736269875822,-150.0,0.00012292,2]
[348029877,1736269875831,-1005.25,0.00012293,5]
[348029878,1736269875841,-11773.6937713,0.00012298,2]
[348029879,1736269875850,-500.0,0.00012299,2]
[348029880,1736269875859,-1000.0,0.00012299,2]
[348029881,1736269875869,-2594286.55780999,0.000123,2]
[348029882,1736269875879,-202.8,0.000123,2]
[348029883,1736269875888,-69603.5858237,0.000123,2]
[348029884,1736269875897,-1300000.00998903,0.000123,2]
[348029885,1736269875908,-1345813.26141413,0.000123,2]
[348029886,1736269875917,-202.0,0.000123,2]
[348029887,1736269875927,-202.0,0.000123,2]
[348029888,1736269875936,-202.0,0.000123,2]
[348029889,1736269875946,-202.0,0.000123,2]
[348029890,1736269875955,-202.0,0.000123,2]
[348029891,1736269875965,-202.0,0.000123,2]
[348029892,1736269875975,-205.0,0.000123,2]
[348029893,1736269875984,-205.0,0.000123,2]
[348029894,1736269875994,-205.0,0.000123,2]
[348029895,1736269876004,-205.0,0.000123,2]
[348029896,1736269876014,-205.0,0.000123,2]
[348029897,1736269876024,-205.0,0.000123,2]
[348029898,1736269876034,-1182799.83617564,0.000123,2]
[348029899,1736269876408,-25448.56701899,0.000123,2]
[348029900,1736269876422,-480.58,0.000123,2]
[348029901,1736269876448,-500.0,0.0001014,2]
[348029902,1736269876458,-41311.24302048,0.000123,2]
[348029903,1736269876470,-830.06149229,0.000123,2]
[348029904,1736269876489,-728.18,0.0001206,2]
[348029905,1736269876499,-541.81759,0.000123,2]
[348029906,1736269876511,-2388.6000052,0.000123,2]
[348029907,1736269876523,-288.9699825,0.000123,2]
[348029908,1736269876728,-500.0,8.77e-05,2]
[348029909,1736269876739,-300.89909356,8.771e-05,2]
[348029910,1736269876751,-199.10090644,8.771e-05,2]
[348029911,1736269876761,-500.0,8.771e-05,2]
[348029912,1736269876771,-500.0,8.771e-05,2]
[348029913,1736269876780,-500.0,8.771e-05,2]
[348029914,1736269876790,-500.0,9.044e-05,2]
[348029915,1736269876799,-500.0,9.045e-05,2]
[348029916,1736269876810,-375.15338619,9.318e-05,2]
[348029917,1736269876819,-500.0,9.319e-05,2]
[348029918,1736269876829,-223.53,0.00010414,2]
[348029919,1736269876838,-735.64,0.00010689,2]
[348029920,1736269876847,-438.32353696,0.00010963,2]
[348029921,1736269876858,-297.31646304,0.00010963,2]
[348029922,1736269876868,-583.78417,0.000122,2]
[348029923,1736269876879,-3026.69234697,0.000123,2]
[348029924,1736269876890,-5663.00549854,0.000123,2]
[348029925,1736269876902,-78121.6,0.000123,2]
[348029926,1736269876994,-978.885,0.000123,2]
[348029927,1736269877006,-142376.3369067,0.000123,2]
[348029928,1736269877015,-205.0,0.000123,2]
[348029929,1736269877026,-205.0,0.000123,2]
[348029930,1736269877036,-205.0,0.000123,2]
[348029931,1736269877046,-205.0,0.000123,2]
[348029932,1736269877057,-66970.49223409,0.000123,2]
[348029933,1736269877069,-669.35632404,0.000123,2]
[348029934,1736269877081,-13201.90983459,0.000123,2]
[348029935,1736269877093,-693.73849483,0.000123,2]
[348029936,1736269877105,-4888850.000001,0.000123,2]
[348029937,1736269877124,-4106.29506,0.000123,2]
[348029938,1736269877415,-500.0,8.77e-05,2]
[348029939,1736269877426,-500.0,9.044e-05,2]
[348029940,1736269877436,-500.0,9.532e-05,2]
[348029941,1736269877446,-212.93166542,9.532e-05,2]
[348029942,1736269877455,-151.8062186,9.532e-05,2]
[348029943,1736269877465,-735.64,0.00011237,2]
[348029944,1736269877476,-735.64,0.00011511,2]
[348029945,1736269877486,-735.64,0.00011785,2]
[348029946,1736269877496,-123936.89245843,0.000123,2]
[348029947,1736269877516,-9848.39477588,0.000123,2]
[348029948,1736269877528,-11585.49986,0.000123,2]
[348029949,1736269877539,-188805.64220867,0.000123,2]
[348029950,1736269877551,-1648.35,0.000123,2]
[348029951,1736269877562,-707.3898016,0.000123,2]
[348029952,1736269877574,-3904.6364026,0.000123,2]
[348029953,1736269878088,-500.0,8.771e-05,2]
[348029954,1736269878098,-500.0,8.771e-05,2]
[348029955,1736269878108,-500.0,8.771e-05,2]
[348029956,1736269878117,-218.463419,8.771e-05,2]
[348029957,1736269878126,-500.0,9.044e-05,2]
[348029958,1736269878135,-500.0,9.045e-05,2]
[348029959,1736269878145,-500.0,9.318e-05,2]
[348029960,1736269878154,-500.0,9.592e-05,2]
[348029961,1736269878165,-87.36707262,9.866e-05,2]
[348029962,1736269878181,-412.63292738,9.866e-05,2]
[348029963,1736269878191,-2829.17723505,0.000119,2]
[348029964,1736269878204,-611.36694022,0.000119,2]
[348029965,1736269878229,-399.78581851,0.000119,2]
[348029966,1736269878240,-388.4408,0.000119,2]
[348029967,1736269878252,-122111.38458703,0.000119,2]
[348029968,1736269878279,-250.41710891,8.771e-05,2]
[348029969,1736269878294,-249.58289109,8.771e-05,2]
[348029970,1736269878305,-1717698.64816419,0.000119,2]
[348029971,1736269878316,-735.64,0.00012059,2]
[348029972,1736269878327,-37304.18777372,0.000123,2]
[348029973,1736269878345,-6769.25669112,0.000123,2]
[348029974,1736269878359,-726.27441741,0.000123,2]
[348029975,1736269878375,-154801.78961081,0.000123,2]
[348029976,1736269878385,-205.0,0.000123,2]
[348029977,1736269878396,-205.0,0.000123,2]
[348029978,1736269878406,-205.0,0.000123,2]
[348029979,1736269878421,-205.0,0.000123,2]
[348029980,1736269878431,-209.0,0.000123,2]
[348029981,1736269878442,-209.0,0.000123,2]
[348029982,1736269878452,-209.0,0.000123,2]
[348029983,1736269878462,-209.0,0.000123,2]
[348029984,1736269878471,-2000.0,0.000123,2]
[348029985,1736269878480,-200.0,0.000123,2]
[348029986,1736269878490,-3000.0,0.000123,2]
[348029987,1736269878499,-353.68138949,0.00012307,2]
[348029988,1736269878509,-2272.70076178,0.00012311,2]
[348029989,1736269878519,-527.31,0.00012326,2]
[348029990,1736269878529,-1307.24,0.00012326,2]
[348029991,1736269878539,-859.28,0.00012326,2]
[348029992,1736269878549,-1688.86,0.00012326,2]
[348029993,1736269878559,-2164.26,0.00012326,2]
[348029994,1736269878569,-917.21,0.00012326,2]
[348029995,1736269878579,-1267.48,0.00012326,2]
[348029996,1736269878589,-1401.08,0.00012326,2]
[348029997,1736269878599,-1589.61,0.00012326,2]
[348029998,1736269878609,-3923.32,0.00012326,2]
[348029999,1736269878619,-977.41,0.00012326,2]
[348030000,1736269878628,-807.65,0.00012326,2]
[348030001,1736269878638,-1479.34,0.00012326,2]
[348030002,1736269878648,-841.01,0.00012326,2]
[348030003,1736269878658,-500.0,0.00012326,2]
[348030004,1736269878669,-1000.0,0.00012326,2]
[348030005,1736269878680,-1022.36,0.00012326,2]
[348030006,1736269878689,-644.04,0.00012326,2]
[348030007,1736269878699,-1768.42,0.00012326,2]
[348030008,1736269878709,-1232.84,0.00012326,2]